bitfinex-derivatives/quotes_SOLF0:USTF0_20250803
["timestamp","ask_amount","ask_price","bid_price","bid_amount"]
[1754233055691,9.6001,161.29,161.28,3.5]
[1754233055991,3.4,161.28,161.27,120.87604804]
[1754233056190,9.6005,161.28,161.27,117.37604804]
[1754233056493,9.6005,161.28,161.27,120.87604804]
[1754233056494,3.4,161.28,161.27,120.87604804]
[1754233056689,3.4,161.28,161.27,116.86]
[1754233056995,3.4,161.28,161.27,113.36]
[1754233057300,3.4,161.28,161.25,3.5]
[1754233057487,3.4,161.28,161.25,116.86]
[1754233058187,3.4,161.26,161.25,116.86]
[1754233059095,3.4,161.26,161.25,113.36]
[1754233059287,9.6012,161.26,161.25,113.36]
[1754233060292,3.4,161.25,161.24,116.86]
[1754233061494,4.01604804,161.28,161.24,116.86]
[1754233061696,10.4135035,161.34,161.24,116.86]
[1754233061697,3.4,161.27,161.25,4.01604804]
[1754233061894,3.4,161.27,161.26,3.5]
[1754233069900,3.31,161.32,161.26,6.2012]
[1754233070096,3.31,161.31,161.28,3.21]
[1754233070493,6.1999,161.3,161.28,3.21]
[1754233070800,3.31,161.29,161.28,3.21]
[1754233071699,3.31,161.31,161.28,3.21]
[1754233071896,3.31,161.33,161.3,3.21]
[1754233072099,3.31,161.33,161.31,7.22604804]
[1754233072303,3.31,161.33,161.32,3.21]
[1754233077095,6.1985,161.33,161.31,3.21]
[1754233077296,3.31,161.32,161.31,3.21]
[1754233082308,3.31,161.35,161.33,3.21]
[1754233082502,3.31,161.34,161.33,113.3]
[1754233082902,3.31,161.34,161.3,6.27516615]
[1754233083105,6.1986,161.33,161.3,113.3]
[1754233083412,3.31,161.32,161.3,113.3]
[1754233085599,3.31,161.32,161.28,116.51]
[1754233085805,6.1993,161.31,161.28,116.51]
[1754233086010,3.31,161.3,161.28,116.51]
[1754233087212,3.31,161.3,161.29,3.21]
[1754233089105,3.31,161.3,161.28,113.3]
[1754233089307,3.31,161.3,161.28,116.51]
[1754233090514,3.31,161.29,161.28,113.3]
[1754233090709,3.31,161.29,161.28,116.51]
[1754233091617,3.31,161.29,161.28,113.3]
[1754233094912,9.5101,161.29,161.28,113.3]
[1754233095116,6.2001,161.29,161.28,113.3]
[1754233095316,9.6901,161.29,161.28,113.3]
[1754233095713,3.49,161.29,161.28,113.3]
[1754233097615,6.1992,161.32,161.28,113.3]
[1754233097819,3.49,161.31,161.3,3.32]
[1754233101824,9.6894,161.31,161.28,116.62]
[1754233102125,3.49,161.3,161.28,116.62]
[1754233105021,3.49,161.3,161.29,3.32]
[1754233105223,6.1997,161.3,161.28,113.3]
[1754233105421,3.49,161.29,161.28,113.3]
[1754233106415,3.49,161.29,161.28,116.62]
[1754233106924,3.49,161.29,161.28,113.3]
[1754233107321,3.49,161.29,161.28,116.62]
[1754233111034,3.49,161.29,161.28,113.3]
[1754233111331,3.49,161.29,161.27,3.32]
[1754233111720,3.49,161.29,161.28,113.26]
[1754233112028,3.49,161.29,161.28,116.58]
[1754233121032,3.49,161.32,161.29,3.32]
[1754233121337,3.49,161.32,161.3,3.32]
[1754233122336,3.49,161.31,161.3,3.32]
[1754233125231,3.49,161.31,161.3,116.56]
[1754233125434,3.49,161.31,161.3,116.51]
[1754233128639,3.49,161.31,161.3,113.24]
[1754233130141,3.49,161.31,161.3,116.51]
[1754233131935,6.1986,161.33,161.3,116.51]
[1754233132238,3.32,161.32,161.31,7.28840305]
[1754233132426,3.32,161.32,161.31,120.50840305]
[1754233135543,3.32,161.32,161.31,116.49]
[1754233135742,3.32,161.32,161.31,117.23840305]
[1754233135942,3.32,161.32,161.31,113.22]
[1754233136132,3.32,161.32,161.31,117.23840305]
[1754233137538,3.32,161.32,161.31,120.50840305]
[1754233141543,9.5189,161.32,161.31,113.22]
[1754233141746,9.5189,161.32,161.31,116.49]
[1754233142550,9.5189,161.32,161.31,113.22]
[1754233144053,9.5189,161.32,161.31,117.23840305]
[1754233146258,9.5189,161.32,161.31,120.50840305]
[1754233146460,9.5189,161.32,161.31,120.48840305]
[1754233148148,9.5189,161.32,161.31,117.21840305]
[1754233148660,9.5189,161.32,161.31,113.2]
[1754233148863,9.5189,161.32,161.31,116.47]
[1754233152558,9.5197,161.3,161.29,4.01840305]
[1754233152761,9.5197,161.3,161.29,117.19840305]
[1754233152959,9.5197,161.3,161.29,113.18]
[1754233157757,9.4504,161.29,161.27,120.46840305]
[1754233157959,3.25,161.28,161.27,120.46840305]
[1754233159368,4.01840305,161.32,161.27,120.46840305]
[1754233159670,3.25,161.31,161.3,3.27]
[1754233160154,9.4497,161.3,161.29,120.46840305]
[1754233160355,9.4497,161.3,161.29,113.18]
[1754233161770,9.4497,161.3,161.29,116.45]
[1754233163865,3.25,161.3,161.29,116.45]
[1754233164070,3.25,161.31,161.3,3.27]
[1754233164268,3.25,161.33,161.3,3.27]
[1754233164569,3.25,161.33,161.31,3.27]
[1754233165260,6.199,161.32,161.3,3.27]
[1754233165567,3.25,161.32,161.31,7.28840305]
[1754233165768,3.25,161.32,161.31,120.46840305]
[1754233166266,3.25,161.32,161.29,4.01840305]
[1754233166466,4.01840305,161.32,161.29,116.45]
[1754233166771,3.25,161.31,161.29,116.45]
[1754233168870,9.4495,161.31,161.3,3.27]
[1754233171768,9.4497,161.3,161.29,116.45]
[1754233175072,9.4497,161.3,161.29,113.18]
[1754233175273,9.4497,161.3,161.29,116.45]
[1754233178879,3.25,161.3,161.29,116.45]
[1754233182287,6.1986,161.33,161.29,116.45]
[1754233182472,3.25,161.32,161.3,3.27]
[1754233184174,6.199,161.32,161.3,3.27]
[1754233184384,3.4,161.31,161.3,3.27]
[1754233189886,3.4,161.33,161.3,3.27]
[1754233190093,3.4,161.33,161.32,3.33]
[1754233196994,9.5986,161.33,161.31,113.14]
[1754233197194,3.4,161.32,161.31,113.14]
[1754233197689,3.4,161.32,161.31,116.47]
[1754233197896,3.4,161.32,161.31,113.14]
[1754233198796,3.4,161.32,161.31,116.47]
[1754233201099,3.4,161.32,161.31,120.48840305]
[1754233203500,3.4,161.32,161.31,116.47]
[1754233206504,3.4,161.32,161.31,120.48840305]
[1754233208805,3.4,161.32,161.31,126.68770305]
[1754233214012,6.94233567,161.37,161.31,120.48840305]
[1754233214310,3.51,161.36,161.34,3.33]
[1754233214507,3.51,161.36,161.35,6.1978]
[1754233214712,3.51,161.36,161.35,9.5278]
[1754233214909,3.51,161.36,161.34,117.09840305]
[1754233215113,3.51,161.36,161.34,116.41]
[1754233215411,3.51,161.36,161.34,122.6079]
[1754233215809,3.51,161.36,161.34,113.08]
[1754233217106,3.51,161.34,161.32,113.08]
[1754233217300,3.51,161.32,161.3,113.08]
[1754233217512,3.51,161.35,161.32,3.33]
[1754233217811,3.51,161.35,161.34,3.33]
[1754233219502,3.51,161.35,161.34,116.41]
[1754233219908,3.51,161.35,161.34,122.6082]
[1754233220406,3.51,161.37,161.36,3.33]
[1754233220605,3.51,161.37,161.34,117.09840305]
[1754233220810,7.52840305,161.37,161.34,113.08]
[1754233221013,3.51,161.36,161.34,113.08]
[1754233221317,4.01840305,161.35,161.32,113.08]
[1754233221612,3.51,161.33,161.32,113.08]
[1754233224818,3.51,161.33,161.32,116.41]
[1754233225213,13.13933567,161.37,161.32,122.6089]
[1754233225423,3.51,161.36,161.33,3.33]
[1754233225714,4.01840305,161.36,161.33,3.33]
[1754233225912,3.51,161.35,161.32,113.08]
[1754233226217,3.51,161.34,161.32,113.08]
[1754233227416,13.72660305,161.34,161.32,113.08]
[1754233227619,3.51,161.33,161.29,6.2]
[1754233227819,3.51,161.32,161.3,113.06]
[1754233228021,3.51,161.32,161.3,116.39]
[1754233230013,3.51,161.32,161.3,113.06]
[1754233230220,4.01840305,161.32,161.3,116.39]
[1754233230416,3.51,161.31,161.3,116.39]
[1754233233922,3.51,161.32,161.3,113.06]
[1754233234122,3.51,161.32,161.3,116.39]
[1754233234622,10.21720305,161.33,161.3,113.06]
[1754233234822,7.52840305,161.31,161.3,113.06]
[1754233235118,3.51,161.3,161.28,116.47]
[1754233235315,3.51,161.3,161.29,3.33]
[1754233235516,6.1989,161.32,161.29,3.33]
[1754233235517,3.51,161.32,161.29,3.33]
[1754233235718,3.51,161.31,161.28,116.47]
[1754233235917,3.51,161.31,161.29,3.33]
[1754233236117,3.51,161.3,161.29,3.33]
[1754233236719,3.51,161.3,161.28,113.14]
[1754233236919,3.51,161.3,161.28,116.47]
[1754233238725,6.1999,161.3,161.28,113.14]
[1754233238926,7.52840305,161.29,161.28,113.14]
[1754233239118,7.52840305,161.29,161.26,116.51]
[1754233239119,4.01840305,161.29,161.26,116.51]
[1754233239318,3.51,161.28,161.26,116.51]
[1754233239514,3.51,161.28,161.27,3.33]
[1754233243022,3.51,161.28,161.26,113.18]
[1754233243225,3.51,161.28,161.26,116.51]
[1754233243829,3.51,161.28,161.27,3.4]
[1754233252037,4.01840305,161.31,161.27,3.4]
[1754233252332,3.49,161.29,161.28,116.5]
[1754233257637,3.49,161.28,161.24,113.1]
[1754233257849,3.49,161.28,161.25,3.4]
[1754233258049,6.2008,161.28,161.25,3.4]
[1754233258251,3.49,161.27,161.25,3.4]
[1754233258848,3.49,161.26,161.25,3.4]
[1754233259051,3.49,161.26,161.24,113.1]
[1754233259250,6.2034,161.21,161.19,3.4]
[1754233259447,6.2034,161.21,161.16,6.2048]
[1754233259448,3.49,161.19,161.15,3.4]
[1754233259652,3.49,161.19,161.16,116.5]
[1754233259947,3.49,161.18,161.16,116.5]
[1754233260137,6.2042,161.19,161.16,113.1]
[1754233260342,3.49,161.19,161.16,119.3051]
[1754233260543,3.49,161.19,161.16,117.11840305]
[1754233260750,3.49,161.19,161.17,3.4]
[1754233261547,3.49,161.18,161.17,3.4]
[1754233261944,4.01840305,161.19,161.17,3.4]
[1754233262140,7.50840305,161.19,161.16,113.1]
[1754233262345,4.01840305,161.17,161.12,5.09725537]
[1754233262544,3.49,161.16,161.13,122.7262]
[1754233263352,3.49,161.16,161.13,116.52]
[1754233264151,3.49,161.16,161.14,3.4]
[1754233264553,3.49,161.17,161.15,3.4]
[1754233264760,6.29055697,161.22,161.16,3.4]
[1754233265054,3.49,161.18,161.16,3.4]
[1754233265247,3.49,161.17,161.13,119.41055697]
[1754233265854,3.49,161.17,161.14,3.4]
[1754233266056,3.49,161.17,161.15,6.2051]
[1754233266261,3.49,161.19,161.16,3.4]
[1754233266655,18.20234981,161.26,161.16,3.4]
[1754233266656,6.29055697,161.24,161.17,3.4]
[1754233266956,3.49,161.23,161.17,3.4]
[1754233267360,6.29055697,161.24,161.17,3.4]
[1754233267562,18.20234981,161.26,161.17,3.4]
[1754233267563,3.49,161.23,161.18,3.4]
[1754233267757,24.49290678,161.26,161.17,6.29055697]
[1754233267758,3.49,161.22,161.17,3.4]
[1754233267954,3.49,161.21,161.17,3.4]
[1754233268552,3.49,161.21,161.19,6.2037]
[1754233268754,3.49,161.23,161.19,6.2037]
[1754233269160,9.6925,161.23,161.19,6.2037]
[1754233269363,3.49,161.22,161.2,3.4]
[1754233270653,3.49,161.22,161.2,9.6035]
[1754233270854,3.49,161.25,161.2,6.29055697]
[1754233271060,3.49,161.24,161.21,3.4]
[1754233271358,3.49,161.27,161.2,116.54]
[1754233271850,3.49,161.22,161.2,116.54]
[1754233273155,3.49,161.22,161.18,9.6043]
[1754233273764,3.49,161.22,161.19,6.2039]
[1754233274063,3.49,161.22,161.19,9.4839]
[1754233274365,3.49,161.22,161.19,3.28]
[1754233274551,3.26,161.21,161.19,3.28]
[1754233274952,3.26,161.21,161.17,119.3446]
[1754233275160,3.26,161.23,161.17,113.14]
[1754233275356,3.26,161.21,161.17,113.14]
[1754233275961,3.26,161.21,161.16,3.28]
[1754233276561,6.29055697,161.3,161.14,116.44]
[1754233276562,3.26,161.19,161.14,116.44]
[1754233278060,3.26,161.17,161.14,122.6458]
[1754233278263,3.26,161.17,161.15,3.28]
[1754233278461,3.26,161.16,161.15,3.28]
[1754233279863,3.26,161.18,161.15,3.28]
[1754233280058,6.204,161.19,161.15,3.28]
[1754233280059,3.26,161.17,161.15,3.28]
[1754233280256,3.26,161.2,161.14,113.16]
[1754233282067,6.2046,161.18,161.14,113.16]
[1754233282366,3.26,161.17,161.14,113.16]
[1754233282568,6.29055697,161.19,161.12,3.28]
[1754233282867,3.26,161.18,161.11,3.28]
[1754233283664,6.2052,161.16,161.11,9.4867]
[1754233284172,10.4135035,161.26,161.11,9.4867]
[1754233284173,9.4655,161.15,161.12,3.28]
[1754233284771,3.26,161.14,161.12,3.28]
[1754233285272,3.26,161.13,161.12,3.28]
[1754233286771,3.26,161.13,161.11,3.28]
[1754233288767,3.26,161.13,161.1,113.18]
[1754233288768,3.26,161.12,161.1,113.18]
[1754233289268,3.26,161.12,161.08,3.28]
[1754233289974,120.76379607,161.19,160.98,3.28]
[1754233289975,3.26,161.09,160.98,3.28]
[1754233290173,6.29055697,161.08,160.99,113.58]
[1754233290570,6.29055697,161.06,160.99,113.58]
[1754233290979,3.26,161.05,161.0,3.28]
[1754233291175,3.26,161.04,161.01,3.28]
[1754233291381,3.26,161.04,160.99,113.58]
[1754233291580,3.26,161.04,161.0,3.28]
[1754233291780,6.2103,161.03,161.0,3.28]
[1754233291980,3.26,161.02,160.99,113.58]
[1754233292276,3.26,160.99,160.93,6.2137]
[1754233292578,3.26,160.99,160.93,6.29055697]
[1754233292879,3.26,160.99,160.97,3.28]
[1754233293078,6.29055697,161.02,160.96,3.28]
[1754233293278,3.26,160.98,160.95,113.82]
[1754233293477,3.26,160.96,160.95,117.1]
[1754233293673,18.49839623,161.07,160.81,422.18077572]
[1754233293674,3.26,160.97,160.93,3.28]
[1754233293870,6.2132,160.96,160.93,3.28]
[1754233294078,3.26,160.95,160.92,113.88]
[1754233294472,3.26,160.94,160.93,3.28]
[1754233294881,3.26,160.93,160.89,113.94]
[1754233295074,6.29055697,160.96,160.89,113.94]
[1754233295273,3.26,160.95,160.9,3.28]
[1754233295473,3.26,161.04,160.91,3.28]
[1754233295675,6.29055697,160.98,160.91,3.28]
[1754233295878,3.26,160.97,160.91,3.28]
[1754233296274,3.26,160.97,160.92,6.29055697]
[1754233296474,6.29055697,161.04,160.98,6.212]
[1754233296779,3.26,161.03,161.01,3.28]
[1754233296986,3.26,161.07,161.01,3.28]
[1754233297173,3.26,161.07,161.01,6.29055697]
[1754233297377,3.26,161.09,161.03,6.29055697]
[1754233297578,6.2062,161.14,161.08,6.2081]
[1754233297776,3.26,161.12,161.1,3.28]
[1754233297975,123.28233567,161.25,161.1,3.28]
[1754233297976,3.26,161.14,161.1,3.28]
[1754233298280,120.11201737,161.19,161.1,3.28]
[1754233298482,3.26,161.18,161.1,3.28]
[1754233298784,3.26,161.18,161.12,3.28]
[1754233299380,3.26,161.18,161.11,6.29055697]
[1754233299887,3.26,161.18,161.12,6.2066]
[1754233300074,3.26,161.18,161.11,6.29055697]
[1754233300280,113.8214604,161.19,161.08,116.46]
[1754233300281,3.26,161.17,161.13,6.29055697]
[1754233300476,117.0814604,161.19,161.15,6.29055697]
[1754233300785,117.0814604,161.19,161.14,10.05854432]
[1754233301379,113.8214604,161.19,161.15,0.85]
[1754233301578,3.26,161.18,161.16,0.85]
[1754233301986,3.26,161.18,161.14,10.90854432]
[1754233302286,3.26,161.17,161.14,10.90854432]
[1754233302490,3.26,161.17,161.14,10.05854432]
[1754233302786,3.26,161.17,161.15,0.85]
[1754233303774,3.25,161.24,161.16,0.86]
[1754233304178,3.25,161.24,161.18,0.86]
[1754233304876,3.25,161.23,161.18,0.86]
[1754233305079,3.25,161.23,161.17,10.05854432]
[1754233305280,6.2028,161.22,161.16,0.86]
[1754233305589,3.25,161.21,161.17,0.86]
[1754233306481,3.25,161.26,161.16,0.86]
[1754233306882,3.25,161.26,161.19,0.86]
[1754233308284,3.25,161.22,161.19,0.86]
[1754233308685,3.25,161.22,161.2,0.86]
[1754233310085,3.25,161.22,161.2,10.91854432]
[1754233310388,3.25,161.22,161.21,0.86]
[1754233310794,3.25,161.22,161.2,10.91854432]
[1754233310988,18.67364797,161.28,161.2,10.05854432]
[1754233311188,13.30854432,161.27,161.17,10.05854432]
[1754233311487,3.25,161.26,161.15,10.05854432]
[1754233311689,3.25,161.26,161.15,10.91854432]
[1754233311989,3.25,161.24,161.15,10.05854432]
[1754233312494,3.25,161.17,161.15,10.05854432]
[1754233312693,3.25,161.17,161.13,10.05854432]
[1754233312994,3.25,161.17,161.12,0.86]
[1754233313690,3.25,161.15,161.12,0.86]
[1754233313995,10.05854432,161.21,161.12,0.86]
[1754233313996,3.25,161.14,161.12,0.86]
[1754233314393,3.25,161.13,161.11,10.91854432]
[1754233314594,3.25,161.15,161.12,0.86]
[1754233314799,3.25,161.14,161.12,0.86]
[1754233315700,3.25,161.16,161.11,10.91854432]
[1754233316001,3.25,161.16,161.12,0.86]
[1754233316999,3.25,161.2,161.12,0.86]
[1754233317597,3.25,161.17,161.12,0.86]
[1754233317994,3.25,161.17,161.1,0.86]
[1754233318393,3.25,161.17,161.09,126.35854432]
[1754233318794,6.2055,161.15,161.09,116.3]
[1754233318996,3.25,161.14,161.09,117.16]
[1754233319195,3.25,161.14,161.09,116.3]
[1754233320704,3.25,161.15,161.1,0.86]
[1754233320999,3.25,161.13,161.11,0.86]
[1754233321200,3.25,161.2,161.09,117.16]
[1754233321401,3.25,161.17,161.09,117.16]
[1754233322499,3.25,161.14,161.1,0.86]
[1754233322802,3.25,161.13,161.11,0.86]
[1754233323204,3.25,161.12,161.11,0.86]
[1754233323496,3.25,161.12,161.09,122.5077]
[1754233323497,10.05854432,161.17,161.09,116.3]
[1754233323802,3.25,161.16,161.06,10.91854432]
[1754233324604,10.05854432,161.17,161.06,0.86]
[1754233324903,3.25,161.12,161.06,0.86]
[1754233326198,3.25,161.11,161.07,0.86]
[1754233326596,3.25,161.1,161.05,0.86]
[1754233328102,3.25,161.1,161.04,16.26794432]
[1754233328301,3.25,161.1,161.06,0.86]
[1754233333109,3.25,161.09,161.07,0.86]
[1754233333499,3.25,161.14,161.07,0.86]
[1754233334303,3.21,161.11,161.07,0.86]
[1754233334910,3.21,161.11,161.06,6.2089]
[1754233335104,3.21,161.11,161.06,7.0689]
[1754233335514,9.417,161.11,161.06,0.86]
[1754233335805,6.207,161.11,161.05,7.0692]
[1754233336006,3.21,161.1,161.05,7.0692]
[1754233336214,3.21,161.1,161.06,0.86]
[1754233336407,9.4175,161.1,161.04,6.2094]
[1754233336614,3.21,161.09,161.04,7.0694]
[1754233337001,9.4181,161.09,161.03,539.65559192]
[1754233337205,6.2081,161.09,161.03,539.65559192]
[1754233337510,3.21,161.08,161.04,6.2097]
[1754233337710,3.21,161.08,161.04,7.0697]
[1754233338007,3.21,161.08,161.03,540.51559192]
[1754233338216,3.21,161.08,161.03,539.65559192]
[1754233338512,3.21,161.08,161.03,540.51559192]
[1754233339208,3.21,161.08,161.03,546.72559192]
[1754233339414,3.21,161.08,161.04,0.86]
[1754233339600,3.21,161.08,161.04,6.2097]
[1754233339805,3.21,161.08,161.05,0.86]
[1754233341208,3.21,161.08,161.03,533.36]
[1754233341413,3.21,161.08,161.03,534.22]
[1754233342310,6.2083,161.08,161.03,534.22]
[1754233342611,3.21,161.07,161.02,121.9904]
[1754233343206,9.4186,161.07,161.02,121.9904]
[1754233343406,3.21,161.06,161.02,121.9904]
[1754233343608,3.21,161.06,161.02,115.78]
[1754233344109,3.21,161.06,161.02,116.64]
[1754233345207,9.419,161.06,161.02,115.78]
[1754233345410,3.21,161.05,161.02,115.78]
[1754233346919,3.21,161.05,161.02,121.9902]
[1754233347207,3.21,161.12,161.04,0.86]
[1754233347403,6.29559192,161.09,161.02,115.78]
[1754233347603,3.21,161.05,161.02,115.78]
[1754233348319,3.21,161.03,161.02,115.78]
[1754233348615,3.21,161.03,161.0,0.86]
[1754233348915,3.21,161.03,161.0,6.2112]
[1754233350613,3.21,161.03,160.99,121.9715]
[1754233351115,9.4204,161.03,160.99,115.76]
[1754233351312,6.2104,161.03,160.99,115.76]
[1754233351507,3.21,161.02,160.99,115.76]
[1754233351713,6.94233567,161.12,160.99,115.76]
[1754233351909,3.21,161.05,160.98,0.86]
[1754233352117,3.21,161.05,160.96,122.83559192]
[1754233352418,3.21,161.03,160.96,115.68]
[1754233352618,6.29559192,161.0,160.89,0.86]
[1754233352816,6.29559192,161.0,160.84,417.26]
[1754233352817,3.21,160.99,160.91,0.86]
[1754233353413,3.21,160.95,160.91,0.86]
[1754233353619,3.21,160.95,160.92,0.86]
[1754233354016,6.94233567,161.06,160.92,7.074]
[1754233354217,3.21,160.96,160.9,6.29559192]
[1754233354423,3.21,160.96,160.91,0.86]
[1754233354617,3.21,160.96,160.9,122.03559192]
[1754233354818,3.21,160.96,160.92,0.86]
[1754233355219,3.21,160.96,160.93,0.86]
[1754233355416,3.21,160.99,160.91,0.86]
[1754233355624,3.21,160.97,160.9,122.03559192]
[1754233355919,6.2136,160.94,160.9,122.03559192]
[1754233356116,3.21,160.93,160.9,122.89559192]
[1754233356625,3.21,160.93,160.9,115.74]
[1754233357625,6.2144,160.92,160.9,115.74]
[1754233357826,3.21,160.91,160.86,129.25219192]
[1754233358022,3.21,160.91,160.87,0.86]
[1754233358215,3.21,160.91,160.87,7.0759]
[1754233358421,3.21,160.92,160.86,116.72]
[1754233358625,3.21,160.92,160.86,115.86]
[1754233359025,3.21,160.91,160.86,115.86]
[1754233359520,6.2148,160.91,160.86,116.72]
[1754233359724,6.29559192,161.0,160.86,115.86]
[1754233359917,6.2142,160.93,160.87,0.86]
[1754233360123,3.21,160.92,160.86,122.0766]
[1754233360322,3.21,160.92,160.88,0.86]
[1754233360623,9.4243,160.92,160.86,115.86]
[1754233360828,3.21,160.94,160.86,115.86]
[1754233361123,3.21,160.94,160.86,116.72]
[1754233361330,6.29559192,160.95,160.86,116.72]
[1754233361331,6.215,160.91,160.86,116.72]
[1754233361623,3.21,160.9,160.86,115.86]
[1754233361829,3.21,160.9,160.86,116.72]
[1754233362127,3.21,160.93,160.87,0.86]
[1754233362325,3.21,160.93,160.86,115.86]
[1754233363322,3.21,160.9,160.87,0.86]
[1754233363630,3.35,160.88,160.86,115.86]
[1754233363821,3.35,160.88,160.87,0.86]
[1754233364021,3.35,160.9,160.87,0.86]
[1754233364223,3.35,160.89,160.87,0.86]
[1754233364525,6.29559192,160.94,160.86,122.0766]
[1754233364725,6.29559192,160.94,160.88,0.86]
[1754233364926,3.35,160.89,160.88,0.86]
[1754233365126,3.35,160.89,160.86,122.0766]
[1754233365327,6.2144,160.92,160.87,0.86]
[1754233365521,3.35,160.88,160.86,115.86]
[1754233365724,3.35,160.88,160.83,0.86]
[1754233365927,3.35,160.88,160.83,116.94]
[1754233366123,3.35,160.86,160.83,116.94]
[1754233366521,3.35,160.86,160.83,116.08]
[1754233366927,3.35,160.89,160.83,116.94]
[1754233367723,9.5656,160.89,160.83,116.94]
[1754233368032,6.29559192,160.91,160.84,0.86]
[1754233368033,3.35,160.9,160.84,0.86]
[1754233368929,3.35,160.88,160.84,0.86]
[1754233369726,6.2151,160.9,160.83,116.08]
[1754233370026,3.35,160.91,160.85,0.86]
[1754233370530,3.35,160.91,160.84,6.29559192]
[1754233370726,3.35,160.9,160.84,0.86]
[1754233371530,3.35,160.88,160.84,0.86]
[1754233371827,3.35,160.88,160.86,0.86]
[1754233372129,3.35,160.96,160.88,0.86]
[1754233372431,6.2134,160.95,160.9,0.86]
[1754233372624,3.35,160.94,160.91,0.86]
[1754233373234,6.29559192,160.99,160.91,0.86]
[1754233373235,3.35,160.98,160.91,0.86]
[1754233375030,6.2136,160.94,160.91,0.86]
[1754233375231,3.35,160.93,160.91,0.86]
[1754233375528,3.35,160.98,160.91,0.86]
[1754233375722,6.213,160.96,160.91,0.86]
[1754233375927,3.35,160.95,160.92,0.86]
[1754233376427,6.29559192,160.99,160.91,7.15559192]
[1754233376733,3.35,160.98,160.92,0.86]
[1754233376939,3.35,160.98,160.94,0.86]
[1754233376940,9.5623,160.98,160.94,0.86]
[1754233377231,3.35,161.02,160.93,6.29559192]
[1754233377422,3.35,161.0,160.92,7.15559192]
[1754233379036,6.29559192,161.01,160.92,7.15559192]
[1754233379230,3.35,160.94,160.92,7.15559192]
[1754233379527,3.35,160.94,160.92,6.29559192]
[1754233379733,3.35,160.94,160.93,0.86]
[1754233380128,3.35,160.94,160.92,6.29559192]
[1754233380330,3.35,160.94,160.92,7.15559192]
[1754233380535,3.35,160.94,160.92,6.29559192]
[1754233380733,3.35,160.94,160.93,0.86]
[1754233381724,3.35,160.94,160.92,6.29559192]
[1754233382130,3.35,160.94,160.92,0.86]
[1754233382625,6.29559192,161.01,160.92,0.86]